bitfinex/quotes_ETHUSD_20260207
["timestamp","ask_amount","ask_price","bid_price","bid_amount"]
[1770495297896,0.002,2089.3,2088.9,0.93751771]
[1770495298188,0.002,2089.3,2089.0,1.19674485]
[1770495299965,0.002,2089.3,2089.0,2.13426256]
[1770495300787,0.002,2089.3,2089.0,1.19674485]
[1770495301986,0.002,2089.3,2089.0,2.13426256]
[1770495302384,0.002,2089.3,2089.1,0.93751771]
[1770495306069,0.002,2089.3,2089.2,1.19663028]
[1770495307075,0.90342211,2089.3,2088.7,0.001]
[1770495308069,0.90142211,2089.1,2088.7,0.001]
[1770495308911,0.90342211,2089.1,2088.7,0.001]
[1770495312386,2.10011062,2089.1,2088.7,0.001]
[1770495312590,0.90342211,2089.1,2088.7,0.001]
[1770495313440,0.002,2089.1,2088.7,0.001]
[1770495313576,2.11303036,2089.3,2088.7,0.001]
[1770495313577,0.002,2089.3,2088.9,0.91872227]
[1770495313782,0.002,2089.3,2088.8,1.19685944]
[1770495314288,0.002,2089.3,2088.8,2.11558171]
[1770495318501,0.002,2089.3,2088.8,1.19685944]
[1770495321797,0.002,2089.3,2089.0,0.001]
[1770495322111,0.002,2089.1,2089.0,0.001]
[1770495323995,0.91642576,2089.5,2089.1,0.91872227]
[1770495323996,0.002,2089.5,2089.1,0.91872227]
[1770495326205,0.002,2089.5,2089.2,1.19663028]
[1770495330107,0.002,2089.5,2089.2,2.11535255]
[1770495330306,0.002,2089.5,2089.1,0.91872227]
[1770495332315,0.002,2089.5,2089.2,2.11535255]
[1770495334319,0.91642576,2090.1,2089.5,1.19645848]
[1770495334519,0.91642576,2090.1,2089.4,1.19650857]
[1770495334702,0.91642576,2090.1,2089.3,1.19657204]
[1770495335709,0.91642576,2090.1,2089.4,1.19651075]
[1770495335924,0.91642576,2090.1,2089.3,1.19652948]
[1770495336198,0.002,2089.5,2089.2,4.78646175]
[1770495336510,0.002,2089.5,2089.1,1.19668756]
[1770495337008,0.002,2089.5,2089.1,2.15988547]
[1770495337211,0.002,2089.5,2089.2,0.96319791]
[1770495338831,0.97687804,2089.4,2089.0,0.001]
[1770495339023,0.97687804,2089.4,2089.0,1.19773647]
[1770495340342,0.002,2089.5,2089.1,0.96319791]
[1770495340535,0.002,2089.5,2089.2,0.002]
[1770495340927,0.002,2089.5,2089.2,1.19863028]
[1770495341825,0.97687804,2089.8,2089.2,1.19863028]
[1770495342426,0.97687804,2089.7,2089.2,1.19863028]
[1770495342702,0.97687804,2089.7,2089.2,0.002]
[1770495343323,0.97687804,2089.6,2089.2,0.002]
[1770495348005,0.97687804,2089.6,2089.3,0.001]
[1770495350537,0.97687804,2089.5,2089.3,0.001]
[1770495352931,0.97687804,2089.7,2089.3,0.001]
[1770495359325,0.002,2089.8,2089.3,0.001]
[1770495360128,0.002,2089.8,2089.3,1.19757301]
[1770495360313,0.97887804,2089.8,2089.3,1.19757301]
[1770495360925,0.002,2089.8,2089.3,1.19757301]
[1770495361233,0.002,2089.8,2089.5,0.001]
[1770495362511,0.97887804,2089.8,2089.5,0.001]
[1770495363816,0.97887804,2089.8,2089.3,0.001]
[1770495364630,0.97687804,2089.6,2089.3,0.001]
[1770495367336,0.9620688,2089.4,2089.3,0.001]
[1770495369342,2.15858454,2089.4,2089.3,0.001]
[1770495370146,1.19651574,2089.4,2089.0,0.001]
[1770495370331,1.19651574,2089.4,2088.8,0.001]
[1770495370332,0.9620688,2089.3,2088.8,0.001]
[1770495371130,0.9620688,2089.5,2088.8,0.99812734]
[1770495371444,0.90045788,2089.3,2088.8,0.001]
[1770495371842,4.78544206,2089.7,2088.8,0.001]
[1770495371843,1.19644457,2089.6,2088.9,0.98994937]
[1770495372033,2.09690245,2089.6,2088.9,0.98994937]
[1770495372233,0.90045788,2089.5,2088.8,1.19783283]
[1770495372434,0.90045788,2089.5,2088.8,0.001]
[1770495373520,0.90045788,2089.3,2088.8,0.001]
[1770495374938,0.90045788,2089.3,2088.5,0.001]
[1770495375525,0.90045788,2089.1,2088.5,0.001]
[1770495377324,0.90045788,2089.1,2088.1,2.09120859]
[1770495377520,1.19674485,2089.0,2088.2,0.98994937]
[1770495377833,0.90045788,2088.9,2088.2,2.18710268]
[1770495381859,1.19685944,2088.8,2088.2,2.18710268]
[1770495382061,2.09731732,2088.8,2088.2,0.98994937]
[1770495382752,2.09731732,2088.8,2088.1,2.18717368]
[1770495383458,0.90045788,2088.7,2088.1,1.19724989]
[1770495383655,0.90045788,2088.7,2087.9,0.99094937]
[1770495383861,0.90045788,2088.5,2087.9,1.1983748]
[1770495384844,0.90045788,2088.5,2087.9,2.18832417]
[1770495385354,0.90045788,2088.5,2087.9,1.1983748]
[1770495386963,2.0975095,2088.5,2088.1,0.001]
[1770495387337,0.90045788,2088.4,2088.1,0.001]
[1770495388036,0.90045788,2088.6,2088.1,0.001]
[1770495388236,0.002,2088.7,2088.1,0.99094937]
[1770495388450,0.002,2088.7,2088.3,4.38000491]
[1770495388649,0.002,2088.9,2088.6,0.98994937]
[1770495389163,0.002,2088.9,2088.7,2.18686611]
[1770495389340,0.002,2088.9,2088.7,1.19691674]
[1770495389549,0.002,2088.9,2088.6,2.18688109]
[1770495390147,0.002,2088.9,2088.7,0.98994937]
[1770495391061,0.002,2088.9,2088.5,1.19699187]
[1770495391239,0.002,2088.9,2088.5,2.18694124]
[1770495391442,0.002,2088.9,2088.4,2.18699578]
[1770495391763,0.90245788,2088.9,2088.2,2.18711886]
[1770495393067,2.09927845,2088.9,2088.3,1.19714561]
[1770495393472,0.90045788,2088.8,2088.2,0.98994937]
[1770495393649,0.90045788,2088.8,2088.1,0.001]
[1770495395470,2.18917062,2088.7,2088.1,0.001]
[1770495395965,0.002,2088.9,2088.1,0.90422222]
[1770495396171,0.002,2088.9,2088.3,0.90322222]
[1770495397669,0.002,2088.9,2088.4,2.1003109]
[1770495398677,0.002,2088.9,2088.5,0.90322222]
[1770495399677,0.002,2088.9,2088.6,1.19697404]
[1770495399977,0.002,2088.9,2088.6,2.10019626]
[1770495400271,0.002,2088.7,2088.6,2.10019626]
[1770495401081,0.002,2088.7,2088.6,0.90322222]
[1770495402363,0.002,2088.7,2088.6,2.10019626]
[1770495402556,0.002,2088.9,2088.7,0.90322222]
[1770495404576,0.002,2088.9,2088.6,0.90322222]
[1770495404783,0.002,2088.9,2088.5,0.001]
[1770495406253,0.002,2088.9,2088.5,0.90422222]
[1770495406885,0.002,2088.9,2088.6,1.19697404]
[1770495407474,0.002,2088.9,2088.7,0.90322222]
[1770495407673,0.002,2089.4,2088.7,0.90322222]
[1770495410786,0.002,2089.4,2088.9,0.90322222]
[1770495411553,0.99425388,2089.4,2088.5,0.001]
[1770495411757,0.99425388,2089.4,2088.5,1.19802841]
[1770495411994,0.99425388,2089.4,2088.6,1.19697158]
[1770495412611,0.99425388,2089.2,2088.6,1.19697158]
[1770495412795,2.19089706,2089.2,2088.5,1.19803136]
[1770495414268,0.99425388,2089.2,2088.5,2.10125358]
[1770495416469,0.99425388,2089.2,2088.5,1.19803136]
[1770495416787,0.99425388,2089.2,2088.6,0.90322222]
[1770495417796,0.99425388,2089.2,2088.7,1.19691674]
[1770495419300,0.002,2089.4,2088.8,0.90322222]
[1770495419800,0.002,2089.4,2089.0,0.90322222]
[1770495420500,0.002,2089.6,2089.0,0.90322222]
[1770495421898,0.002,2089.6,2089.2,0.90322222]
[1770495422074,0.002,2090.0,2089.3,0.90322222]
[1770495423902,0.002,2090.0,2089.5,0.90322222]
[1770495424407,0.002,2090.3,2089.5,0.90322222]
[1770495425484,0.002,2090.3,2089.6,0.03107]
[1770495425687,0.002,2090.5,2089.7,0.91104797]
[1770495426189,0.002,2091.0,2090.0,0.91104797]
[1770495426515,0.90605407,2090.9,2089.8,2.10733469]
[1770495426817,0.90605407,2090.9,2089.8,1.19628672]
[1770495428115,0.90605407,2090.7,2089.6,1.19640122]
[1770495430207,1.19582894,2090.6,2089.6,0.91104797]
[1770495430414,0.90605407,2090.6,2089.6,0.91104797]
[1770495432722,0.90605407,2090.6,2089.7,2.19597827]
[1770495433488,2.10189172,2090.6,2089.7,2.19597827]
[1770495433689,0.95390448,2090.5,2089.7,1.19634397]
[1770495434096,2.14971954,2090.7,2089.7,2.19597827]
[1770495434525,0.95390448,2090.6,2089.7,2.19597827]
[1770495434831,0.95390448,2090.5,2089.7,2.19597827]
[1770495435430,4.78462301,2091.0,2089.8,0.9996343]
[1770495435431,0.002,2091.0,2089.8,0.9996343]
[1770495435724,0.95590448,2091.0,2090.1,0.9996343]
[1770495436701,0.002,2090.8,2090.1,0.9996343]
[1770495436898,0.002,2090.8,2090.2,1.19605779]
[1770495437302,0.002,2090.8,2090.2,2.19569209]
[1770495438331,0.95590448,2090.8,2090.2,1.19605779]
[1770495439029,0.002,2090.8,2090.0,0.9996343]
[1770495441007,0.002,2090.8,2090.1,1.19611501]
[1770495441508,0.002,2090.8,2090.1,2.19574931]
[1770495443531,0.95590448,2090.8,2089.9,4.78586224]
[1770495443715,0.95590448,2090.8,2090.1,1.19611278]
[1770495446037,0.95590448,2090.8,2089.9,4.78546007]
[1770495446641,0.95590448,2090.8,2089.9,5.78509437]
[1770495449045,0.95590448,2090.8,2090.3,0.001]
[1770495449226,0.95590448,2090.7,2090.3,0.001]
[1770495455156,0.95390448,2090.6,2090.3,0.001]
[1770495457352,0.002,2090.7,2090.3,0.001]
[1770495457974,0.95060596,2090.7,2090.3,0.001]
[1770495458184,0.94860596,2090.6,2090.3,0.001]
[1770495460237,0.002,2090.7,2090.3,0.001]
[1770495460238,0.002,2090.7,2090.3,0.90368013]
[1770495462377,0.002,2090.7,2090.5,0.001]
[1770495472885,0.002,2090.7,2090.5,0.90368013]
[1770495473271,0.002,2090.7,2090.6,1.19582894]
[1770495473468,0.002,2090.9,2090.7,0.90268013]
[1770495473676,0.95060596,2091.4,2090.6,1.19582894]
[1770495474004,0.94860596,2091.3,2090.6,1.19582894]
[1770495474666,0.94860596,2091.3,2090.5,1.1968492]
[1770495475376,0.94860596,2091.1,2090.7,0.001]
[1770495475880,0.002,2090.9,2090.7,0.001]
[1770495477100,0.002,2090.9,2090.7,0.90368013]
[1770495477403,0.95060596,2091.4,2090.8,1.19571455]
[1770495478095,0.002,2091.4,2091.0,4.37261207]
[1770495478293,0.94860596,2091.6,2091.0,4.37261207]
[1770495478478,0.95060596,2091.8,2091.0,5.2752922]
[1770495478677,0.95060596,2091.8,2091.0,4.37261207]
[1770495479269,0.95060596,2091.8,2091.0,5.2752922]
[1770495479496,0.002,2091.8,2091.3,5.2752922]
[1770495479788,0.002,2091.8,2091.4,0.90268013]
[1770495480967,0.002,2092.0,2091.5,4.37261207]
[1770495481168,0.002,2092.0,2091.6,0.90268013]
[1770495481366,0.002,2092.0,2091.6,2.09789401]
[1770495481679,0.95060596,2092.0,2091.6,1.19524551]
[1770495482065,0.002,2092.0,2091.6,1.19524551]
[1770495482265,0.94860596,2092.5,2091.7,0.90268013]
[1770495482461,0.24992815,2092.7,2091.7,0.90268013]
[1770495482462,0.94860596,2092.6,2091.7,0.90268013]
[1770495483201,0.94860596,2093.0,2091.7,0.90268013]
[1770495483506,0.94860596,2092.8,2091.8,1.19514293]
[1770495486096,0.9519904,2092.6,2091.6,1.19522029]
[1770495486299,0.9519904,2092.6,2091.7,1.19519886]
[1770495486803,0.9519904,2092.6,2091.7,1.19518101]
[1770495487300,0.9519904,2092.6,2091.5,4.78119104]
[1770495487301,0.9519904,2092.6,2091.6,1.19521831]
[1770495487501,0.9519904,2092.6,2091.7,1.1951916]
[1770495487715,0.002,2092.4,2091.7,1.1951916]
[1770495487905,0.9519904,2092.3,2091.4,4.78141067]
[1770495488070,0.9519904,2092.2,2091.5,4.78124439]
[1770495488669,2.14879773,2092.4,2091.6,0.95885451]
[1770495488868,0.002,2092.4,2091.6,0.95885451]
[1770495489286,0.002,2092.4,2091.5,4.78124439]
[1770495489287,0.9519904,2092.3,2091.5,4.78124439]
[1770495489597,0.9519904,2092.3,2091.5,5.7400989]
[1770495489806,0.002,2092.4,2091.6,0.95885451]
[1770495490487,0.9539904,2092.4,2091.5,1.1952709]
[1770495490670,0.9539904,2092.4,2091.6,1.19525675]
[1770495491106,0.9539904,2092.4,2091.5,1.19527442]
[1770495491306,0.9539904,2092.4,2091.6,1.19524792]
[1770495492380,0.9539904,2092.4,2091.4,4.78142917]
[1770495492381,1.19485733,2092.3,2091.3,1.19542868]
[1770495492590,0.94807736,2092.2,2091.3,1.19542868]
[1770495493602,0.94807736,2092.2,2091.3,2.13955729]
[1770495495921,0.94807736,2092.0,2091.1,0.94412861]
[1770495497394,2.14297112,2092.3,2091.1,0.94412861]
[1770495497589,0.002,2092.4,2091.3,0.94412861]
[1770495497813,0.002,2092.4,2091.6,0.94412861]
[1770495498017,0.002,2092.4,2091.8,0.94412861]
[1770495499822,0.002,2092.4,2091.8,0.94512861]
[1770495500125,0.002,2092.4,2091.9,1.1950858]
[1770495504403,0.95007736,2092.4,2091.8,1.19610228]
[1770495504604,0.95007736,2092.4,2091.8,0.001]
[1770495506400,0.002,2092.4,2091.8,0.94512861]
[1770495508525,0.002,2092.4,2091.9,1.1950858]
[1770495510915,0.002,2092.4,2091.8,2.14023347]
[1770495511118,0.002,2092.4,2091.8,1.19610486]
[1770495512013,0.002,2092.4,2092.1,0.001]
[1770495512207,0.002,2092.2,2092.1,0.001]
[1770495517114,0.002,2092.6,2092.2,0.9902178]
[1770495517337,0.002,2092.6,2092.2,2.18509639]
[1770495517537,0.92852753,2092.6,2092.1,1.1959593]
[1770495518039,0.92852753,2092.6,2092.2,1.19491011]
[1770495518240,0.002,2092.6,2092.2,1.19491011]
[1770495518537,0.92852753,2092.6,2092.1,1.19594061]
[1770495519040,0.92852753,2092.6,2092.2,1.19490565]
[1770495519246,0.002,2092.6,2092.1,4.78086957]
[1770495519619,0.92852753,2092.6,2092.1,0.001]
[1770495521518,0.92652753,2092.4,2092.1,0.001]
[1770495523446,0.92652753,2092.2,2092.1,0.001]
[1770495524944,0.92652753,2092.2,2091.8,0.001]
[1770495525148,0.92652753,2092.2,2091.8,0.002]
[1770495526437,0.92652753,2092.1,2091.8,0.002]
[1770495526617,0.92652753,2092.1,2092.0,0.001]
[1770495533232,0.92652753,2092.0,2091.2,0.001]
[1770495533451,0.92652753,2091.8,2091.2,0.001]
[1770495534259,0.96001875,2091.8,2091.2,0.001]
[1770495534552,1.19520007,2091.7,2091.2,0.001]
[1770495534858,0.92652753,2091.6,2091.2,0.001]
[1770495537226,1.19531436,2091.5,2091.2,0.001]
[1770495537448,0.92652753,2091.4,2091.2,0.001]
[1770495538159,1.1952984,2091.6,2091.2,0.001]
[1770495538461,2.12149908,2092.1,2091.2,0.9912178]
[1770495538630,0.92652753,2092.0,2091.2,0.9912178]
[1770495539228,2.12161333,2091.9,2091.4,0.001]
[1770495539628,2.12361333,2091.9,2091.4,0.001]
[1770495540362,0.92652753,2091.8,2091.4,0.001]
[1770495541434,0.92652753,2091.6,2091.4,0.001]
[1770495542151,0.92652753,2091.6,2091.2,0.001]
[1770495542352,0.96001875,2091.6,2090.7,0.001]
[1770495542956,0.92652753,2091.2,2090.7,0.001]
[1770495543532,0.92652753,2091.0,2090.7,0.001]
[1770495543956,1.19554301,2091.1,2090.7,0.001]
[1770495544266,2.12207054,2091.1,2090.7,0.001]
[1770495544558,0.92652753,2091.0,2090.7,0.001]
[1770495545328,0.92652753,2091.0,2090.5,0.001]
[1770495545657,0.91266897,2090.8,2090.5,0.001]
[1770495546363,0.91266897,2090.8,2090.3,0.001]
[1770495547568,0.91266897,2090.6,2090.3,0.001]
[1770495548261,0.91266897,2090.6,2090.0,0.001]
[1770495548262,0.91266897,2090.6,2089.6,0.001]
[1770495549442,0.91266897,2090.3,2089.6,0.001]
[1770495549643,0.91266897,2090.1,2089.6,0.001]
[1770495551241,0.91266897,2090.1,2089.2,0.001]
[1770495551770,0.92329216,2089.9,2089.2,0.001]
[1770495552879,0.92329216,2089.9,2089.8,0.001]
[1770495553079,0.92329216,2089.9,2089.2,0.001]
[1770495553373,0.92329216,2089.9,2089.5,0.001]
[1770495553573,0.92329216,2089.7,2089.5,0.001]
[1770495554156,0.92329216,2089.7,2089.2,0.001]
[1770495556871,1.19640122,2089.6,2089.2,0.001]
[1770495557693,1.02569216,2089.5,2088.7,0.001]
[1770495557853,0.92329216,2089.3,2088.1,1.1982316]
[1770495558176,0.92329216,2089.3,2088.2,0.95597482]
[1770495558952,0.92329216,2089.1,2088.2,0.95597482]
[1770495559377,1.19663028,2089.2,2088.6,0.95597482]
[1770495559589,1.19622948,2089.9,2088.6,0.95597482]
[1770495560253,2.11952164,2089.9,2088.6,0.95597482]
[1770495560856,1.19605779,2090.2,2088.8,0.95597482]
[1770495561085,1.19605779,2090.2,2089.0,0.95597482]
[1770495561882,1.19605779,2090.2,2089.0,0.98946604]
[1770495562181,1.19600479,2090.3,2089.0,0.98946604]
[1770495563993,0.002,2090.6,2089.2,0.95597482]
[1770495564153,1.19588615,2090.5,2089.4,0.95597482]
[1770495564772,0.92329216,2090.4,2089.4,0.95597482]
[1770495566788,0.92329216,2090.2,2089.2,0.95697482]
[1770495567673,1.19600057,2090.3,2089.2,0.95697482]
[1770495568058,1.19788292,2090.6,2089.4,0.95597482]
[1770495568458,2.12117508,2090.6,2089.4,0.95597482]
[1770495568696,2.12117508,2090.6,2089.6,0.95597482]
[1770495569190,0.92329216,2090.5,2089.6,0.95597482]
[1770495571088,1.19594336,2090.4,2089.7,1.19634397]
[1770495571593,1.19594336,2090.4,2089.6,2.15234058]
[1770495574393,1.19594336,2090.4,2089.7,0.95597482]
[1770495577116,1.19594336,2090.4,2089.7,2.15226256]
[1770495577518,0.002,2090.2,2089.7,2.15226256]
[1770495577716,0.002,2090.2,2089.8,0.99822388]
[1770495578012,0.002,2090.4,2089.9,0.99822388]
[1770495578704,0.002,2090.4,2089.7,2.19451162]
[1770495579292,0.94457073,2090.3,2089.2,0.001]
[1770495579492,0.94457073,2090.3,2089.5,1.19644805]
[1770495579698,0.94457073,2090.3,2089.4,1.19647277]
[1770495579883,0.94457073,2090.3,2089.5,2.1946706]
[1770495580497,0.94457073,2090.3,2089.6,1.19639489]
[1770495581090,0.94457073,2090.3,2089.5,2.19464031]
[1770495581296,0.94457073,2090.3,2089.5,1.19641643]
[1770495581503,2.14062852,2090.2,2089.4,4.7860258]
[1770495581708,2.14062852,2090.2,2089.4,5.78424968]
[1770495582688,0.94457073,2090.1,2089.4,4.7860258]
[1770495582888,0.94457073,2090.1,2089.4,5.78424968]
[1770495583090,1.19605779,2090.2,2089.5,0.99822388]
[1770495584520,1.19605779,2090.2,2089.5,2.19462709]
[1770495584693,1.19605779,2090.2,2089.5,0.99822388]
[1770495585019,2.14062852,2090.2,2089.5,2.19467114]
[1770495587015,0.94657073,2090.4,2089.6,0.99822388]
[1770495587320,0.002,2090.4,2089.6,0.99822388]
[1770495590113,0.002,2090.4,2089.8,0.99922388]
[1770495590613,0.002,2090.2,2089.8,0.99922388]
[1770495592520,0.002,2090.2,2089.9,1.19622948]
[1770495592721,0.002,2090.2,2089.8,2.19547373]
[1770495594108,0.94657073,2090.2,2089.8,0.001]
[1770495594499,0.002,2090.2,2089.8,0.001]
[1770495596703,0.002,2090.2,2089.8,1.19728672]
[1770495597719,0.002,2090.4,2089.9,0.99822388]
[1770495598224,0.002,2090.6,2090.0,0.99822388]
[1770495600327,0.002,2090.6,2090.2,0.99822388]
[1770495601413,0.94657073,2090.6,2089.8,0.001]
[1770495601613,0.94657073,2090.6,2089.9,1.19622103]
[1770495602014,0.94657073,2090.6,2089.8,0.001]
[1770495602218,0.002,2090.6,2090.1,0.99822388]
[1770495602535,0.002,2091.3,2090.8,0.99822388]
[1770495602707,0.002,2091.9,2091.0,0.99822388]
[1770495602905,0.002,2092.2,2091.1,1.0317151]
[1770495603110,0.002,2091.5,2090.9,1.10062388]
[1770495603309,0.94657073,2092.1,2090.9,0.99822388]
[1770495603516,0.002,2092.1,2091.1,0.99822388]
[1770495603935,0.94657073,2092.1,2091.1,0.99822388]
[1770495604307,0.002,2092.1,2091.1,0.99822388]
[1770495604738,0.002,2092.1,2091.2,2.19370972]
[1770495605039,0.002,2092.1,2091.3,0.99822388]
[1770495607444,0.002,2092.1,2091.4,1.19537152]
[1770495608343,0.002,2092.6,2091.7,0.98566251]
[1770495609648,0.002,2092.6,2091.9,0.95217129]
[1770495610620,0.33017269,2093.4,2091.9,0.95217129]
[1770495610621,0.33017269,2093.4,2092.1,0.95217129]
[1770495610822,1.5244029,2093.4,2092.1,0.95217129]
[1770495611117,0.94683282,2093.3,2092.1,0.95217129]
[1770495611345,1.5244029,2093.4,2092.1,0.95217129]
[1770495611747,0.33017269,2093.4,2092.3,0.94020002]
[1770495611943,0.95032443,2093.3,2092.3,0.94020002]
[1770495612135,0.95032443,2093.3,2092.2,1.19491444]
[1770495612333,2.14461096,2093.3,2092.3,0.94020002]
[1770495612648,0.95032443,2093.3,2092.3,0.94020002]
[1770495612857,0.95032443,2093.3,2092.2,1.19491444]
[1770495614544,0.95032443,2093.1,2092.0,0.94020002]
[1770495614761,0.002,2092.4,2092.1,1.19497155]
[1770495615407,0.33017269,2093.4,2092.5,0.94020002]
[1770495615655,0.33017269,2093.4,2092.2,0.94020002]
[1770495615834,0.33017269,2093.4,2092.5,0.94020002]
[1770495616421,0.33017269,2093.4,2092.6,1.19468603]
[1770495616623,0.33017269,2093.4,2092.7,0.94020002]
[1770495618023,0.95032443,2093.8,2092.7,0.94020002]
[1770495618355,1.1939292,2094.0,2092.7,0.97369124]
[1770495618530,1.1939292,2094.0,2092.9,0.94020002]
[1770495618855,0.95032443,2094.3,2093.1,0.94020002]
[1770495619255,0.95032443,2094.3,2092.8,2.13477188]
[1770495619462,0.90032443,2094.3,2092.9,0.94020002]
[1770495619941,0.90032443,2094.3,2093.1,0.94020002]
[1770495620324,0.90032443,2094.3,2093.0,0.03349122]
[1770495620538,2.1440977,2094.2,2093.1,1.19440064]
[1770495620855,0.95032443,2094.1,2093.1,1.19440064]
[1770495621731,0.95032443,2094.1,2093.1,1.18098596]
[1770495622645,0.95032443,2093.9,2093.0,1.19444493]
[1770495622845,0.95032443,2093.9,2092.7,1.19462813]
[1770495623441,0.95032443,2093.9,2092.6,1.19464163]
[1770495623952,0.95032443,2093.9,2092.7,1.19461697]
[1770495624660,0.95032443,2093.9,2092.5,4.77888019]
[1770495624859,0.95032443,2093.7,2092.4,1.19478773]
[1770495625066,0.95032443,2093.6,2092.4,1.19478773]
[1770495625649,0.95032443,2093.6,2092.3,1.19482165]
[1770495625968,0.95032443,2093.6,2092.3,1.19483048]
[1770495626172,0.95032443,2093.6,2092.2,1.19487343]
[1770495626469,0.95032443,2093.2,2092.0,1.19499265]
[1770495626676,0.95032443,2093.2,2092.1,1.19496944]
[1770495626867,0.95032443,2093.0,2091.8,1.19514293]
[1770495627254,0.95032443,2093.0,2092.6,0.001]
[1770495630782,1.19451478,2092.9,2092.6,0.001]
[1770495631561,2.14461096,2093.3,2092.6,0.001]
[1770495635589,0.90917601,2093.2,2092.6,0.001]
[1770495637593,1.19440064,2093.1,2092.6,0.001]
[1770495639675,1.19440064,2093.1,2092.8,0.001]
[1770495639877,0.002,2093.0,2092.8,0.001]
[1770495642377,0.002,2093.2,2092.8,0.9924668]
[1770495642580,1.52578201,2093.7,2092.8,0.9924668]
[1770495642892,0.91117601,2093.6,2092.8,0.001]
[1770495644569,0.002,2093.6,2092.9,0.9914668]
[1770495644881,0.19724952,2093.7,2092.9,0.9914668]
[1770495645083,0.91117601,2093.6,2092.8,0.001]
[1770495645475,0.002,2093.6,2092.8,0.9924668]
[1770495646775,0.002,2093.6,2093.0,0.9914668]
[1770495647379,0.19724952,2093.7,2093.0,0.9914668]
[1770495647583,0.002,2093.6,2093.0,0.9914668]
[1770495650998,0.91117601,2093.6,2092.9,1.19446044]
[1770495651879,0.91117601,2093.6,2093.0,1.19445193]
[1770495652681,0.90917601,2093.5,2092.8,0.001]
[1770495653000,0.90917601,2093.3,2092.1,1.19496498]
[1770495653193,0.90917601,2093.3,2092.1,1.19495838]
[1770495653392,0.90917601,2093.3,2092.8,0.001]
[1770495653576,0.90917601,2093.3,2092.1,1.19495838]
[1770495653901,0.002,2093.4,2092.7,0.9914668]
[1770495654080,0.002,2093.4,2092.7,1.19462869]
[1770495654287,0.002,2093.4,2092.8,1.02495802]
[1770495655101,0.002,2093.4,2092.9,1.19451478]
[1770495655987,0.002,2093.4,2092.8,0.9914668]
[1770495656304,0.91117601,2093.4,2092.7,1.19462492]
[1770495656504,0.91117601,2093.4,2092.6,1.19464211]
[1770495656687,0.91117601,2093.4,2092.5,5.77139497]
[1770495656883,0.91117601,2093.4,2092.6,1.19463663]
[1770495657088,0.91117601,2093.4,2092.8,1.19456997]
[1770495657307,0.91117601,2093.4,2092.6,4.77865836]
[1770495657500,2.10540846,2093.4,2092.6,4.77865836]
[1770495657809,2.10540846,2093.4,2092.6,1.19468603]
[1770495659226,0.002,2093.4,2092.8,1.19457186]
[1770495659386,0.002,2093.4,2092.9,0.9914668]
[1770495661277,0.002,2093.4,2092.9,1.19448633]
[1770495661484,0.002,2093.4,2092.6,4.77867897]
[1770495661705,0.91117601,2093.4,2092.6,1.19467217]
[1770495663008,0.002,2093.4,2092.8,1.19453979]
[1770495663405,0.002,2093.4,2092.7,1.19462894]
[1770495663789,0.002,2093.4,2092.8,0.9914668]
[1770495664115,0.002,2093.4,2092.7,1.19462894]
[1770495665091,0.002,2093.4,2092.6,1.19464966]
[1770495665092,0.91117601,2093.4,2092.6,1.19464966]
[1770495665486,0.91117601,2093.4,2092.5,0.95916448]
[1770495665813,0.002,2093.4,2092.7,0.95916448]
[1770495667994,0.002,2093.4,2092.9,0.95816448]
[1770495668514,4.77737641,2094.1,2092.9,0.95816448]
[1770495668515,0.002,2094.1,2093.4,0.95816448]
[1770495670214,0.002,2094.1,2093.6,1.19411539]
[1770495670512,0.002,2094.1,2093.6,2.15227987]
[1770495670716,0.002,2094.1,2093.7,0.95816448]
[1770495671015,0.002,2094.1,2093.6,2.15227987]
[1770495671394,0.002,2094.1,2093.7,1.03118324]
[1770495671805,1.19335467,2095.0,2093.8,0.99769202]
[1770495672116,2.13860123,2095.0,2093.8,0.99769202]
[1770495672415,0.94524656,2094.9,2093.9,2.19163633]
[1770495672616,0.94524656,2094.9,2094.0,0.99769202]
[1770495674605,1.24823186,2095.1,2094.2,0.92603174]
[1770495674922,2.16256655,2095.1,2094.2,0.92603174]
[1770495675105,0.91433469,2095.0,2094.1,1.19383028]
[1770495675705,0.91433469,2095.0,2094.0,1.19384962]
[1770495676135,0.91433469,2095.0,2094.1,0.92603174]
[1770495676335,0.91433469,2095.0,2094.0,1.19384962]
[1770495677040,0.91433469,2094.8,2093.7,1.19404377]
[1770495677225,0.91433469,2094.8,2093.7,1.19403017]
[1770495677536,0.91433469,2094.8,2093.8,1.19399537]
[1770495678122,0.91433469,2094.8,2093.3,0.92603174]
[1770495678326,0.91433469,2094.6,2093.8,1.19399793]
[1770495678828,0.91433469,2094.6,2093.6,1.19411019]
[1770495679012,0.91433469,2094.4,2093.4,4.77690002]
[1770495679210,0.91433469,2094.4,2093.3,1.19425558]
[1770495679614,0.91433469,2094.4,2092.9,0.001]
[1770495679804,0.91433469,2094.4,2093.3,1.19428401]
[1770495680718,0.91433469,2094.4,2093.1,1.19435937]
[1770495680924,0.91433469,2094.4,2093.2,1.19433447]
[1770495681126,0.91433469,2094.2,2092.9,2.12154652]
[1770495681326,0.91433469,2094.2,2092.9,0.001]
[1770495682111,0.94782591,2094.2,2092.9,0.001]
[1770495684035,0.91433469,2094.0,2092.9,0.001]
[1770495686523,0.91433469,2093.8,2092.9,0.001]
[1770495689850,2.10839305,2093.7,2092.9,0.001]
[1770495690147,0.91433469,2093.6,2092.9,0.001]
[1770495691946,1.1941451,2093.6,2093.1,0.001]
[1770495692417,2.10837888,2093.8,2093.1,0.001]
[1770495692618,1.19404419,2093.8,2093.1,0.92703174]
[1770495693050,2.10831152,2093.9,2093.1,0.92703174]
[1770495693549,0.91433469,2093.8,2092.7,0.001]
[1770495693748,1.19397683,2093.9,2092.7,0.92703174]
[1770495694121,0.91433469,2093.9,2092.9,0.92603174]
[1770495696240,2.16073609,2093.8,2093.0,2.14157943]
[1770495696545,0.96673476,2093.8,2093.0,2.14157943]
[1770495697049,0.96673476,2093.8,2093.0,1.19445771]
[1770495697248,0.96673476,2093.8,2093.0,2.14157943]
[1770495699128,0.002,2094.0,2093.1,0.94712172]
[1770495701466,0.002,2094.0,2093.4,0.94712172]